fUSD/lending_fUSD_20250905
["ID","MTS","AMOUNT","RATE_DAILY","PERIOD"]
[383765315,1757109235199,-765.31,0.00039726,10]
[383765316,1757109235209,-401.2,0.00039726,10]
[383765317,1757109235219,-400.0,0.00039726,10]
[383765318,1757109235228,-417.09,0.00039726,10]
[383765319,1757109235238,-441.78,0.00039726,10]
[383765320,1757109235247,-400.0,0.00039726,10]
[383765321,1757109235257,-400.0,0.00039726,10]
[383765322,1757109235266,-553.83,0.00039726,10]
[383765323,1757109235276,-546.26,0.00039726,10]
[383765324,1757109235285,-400.0,0.00039726,10]
[383765325,1757109235294,-400.0,0.00039726,10]
[383765326,1757109235303,-441.15,0.00039726,10]
[383765327,1757109235313,-785.59,0.00039726,10]
[383765328,1757109235322,-437.91,0.00039726,10]
[383765329,1757109235332,-447.37,0.00039726,10]
[383765330,1757109235341,-632.37,0.00039726,10]
[383765331,1757109235351,-414.4,0.00039726,10]
[383765332,1757109235360,-569.2,0.00039726,10]
[383765333,1757109235369,-981.06,0.00039726,10]
[383765334,1757109235379,-454.83279347,0.00039726,10]
[383765335,1757109235389,-400.0,0.00039726,10]
[383765336,1757109235398,-400.0,0.00039726,10]
[383765337,1757109235408,-400.0,0.00039726,10]
[383765338,1757109235417,-542.91,0.00039726,10]
[383765339,1757109235427,-414.08,0.00039726,10]
[383765340,1757109235436,-420.85,0.00039726,10]
[383765341,1757109235445,-1444.34,0.00039726,10]
[383765342,1757109235455,-2516.87,0.00039726,10]
[383765343,1757109235464,-441.96,0.00039726,10]
[383765344,1757109235473,-487.97,0.00039726,10]
[383765345,1757109235483,-400.0,0.00039726,10]
[383765346,1757109235492,-2345.08,0.00039726,10]
[383765347,1757109235502,-586.94,0.00039726,10]
[383765348,1757109235511,-626.89,0.00039726,10]
[383765349,1757109235520,-447.68,0.00039726,10]
[383765350,1757109235530,-400.0,0.00039726,10]
[383765351,1757109235539,-498.12,0.00039726,10]
[383765352,1757109235549,-400.0,0.00039726,10]
[383765353,1757109235558,-400.0,0.00039726,10]
[383765354,1757109235567,-170.49,0.00039726,10]
[383765355,1757109235577,-448.78,0.00039726,10]
[383765356,1757109235586,-154.84,0.00039726,10]
[383765357,1757109235596,-400.0,0.00039726,10]
[383765358,1757109235605,-400.0,0.00039726,10]
[383765359,1757109235617,-475.22,0.00039726,10]
[383765360,1757109235627,-562.67,0.00039726,10]
[383765361,1757109235637,-576.12,0.00039726,10]
[383765362,1757109235647,-425.78,0.00039726,10]
[383765363,1757109235656,-459.73,0.00039726,10]
[383765364,1757109235666,-400.0,0.00039726,10]
[383765365,1757109235676,-400.0,0.00039726,10]
[383765366,1757109235690,-546.92,0.00039726,10]
[383765367,1757109235700,-400.0,0.00039726,2]
[383765368,1757109235709,-543.53,0.00039726,10]
[383765369,1757109235718,-400.0,0.00039726,10]
[383765370,1757109235728,-551.73,0.00039726,10]
[383765371,1757109235737,-495.5,0.00039726,10]
[383765372,1757109235747,-584.47,0.00039726,10]
[383765373,1757109235757,-400.0,0.00039726,10]
[383765374,1757109235767,-445.12,0.00039726,10]
[383765375,1757109235776,-217.1143057,0.00039726,10]
[383765376,1757109235785,-400.0,0.00039726,10]
[383765377,1757109235795,-400.0,0.00039726,10]
[383765378,1757109235805,-618.31,0.00039726,10]
[383765379,1757109235818,-582.55,0.00039726,10]
[383765380,1757109235827,-2141.03,0.00039726,10]
[383765381,1757109235836,-502.39,0.00039726,10]
[383765382,1757109235849,-400.0,0.00039726,10]
[383765383,1757109235859,-884.72,0.00039726,10]
[383765384,1757109235868,-494.68,0.00039726,10]
[383765385,1757109235878,-492.2,0.00039726,10]
[383765386,1757109235887,-590.75,0.00039726,10]
[383765387,1757109235897,-434.34,0.00039726,10]
[383765388,1757109235907,-400.0,0.00039726,10]
[383765389,1757109235916,-462.18454041,0.00039726,10]
[383765390,1757109235926,-423.04,0.00039726,10]
[383765391,1757109235935,-400.0,0.00039726,10]
[383765392,1757109235945,-474.82,0.00039726,10]
[383765393,1757109235954,-400.0,0.00039726,10]
[383765394,1757109235963,-400.0,0.00039726,10]
[383765395,1757109235972,-508.93,0.00039726,10]
[383765396,1757109235982,-400.0,0.00039726,10]
[383765397,1757109235995,-400.0,0.00039726,10]
[383765398,1757109236004,-1028.14,0.00039726,10]
[383765399,1757109236014,-400.0,0.00039726,10]
[383765400,1757109236027,-2757.36,0.00039726,10]
[383765401,1757109236038,-400.0,0.00039726,10]
[383765402,1757109236048,-701.4,0.00039726,10]
[383765403,1757109236058,-404.16,0.00039726,10]
[383765404,1757109236068,-696.57,0.00039726,10]
[383765405,1757109236079,-766.81,0.00039726,10]
[383765406,1757109236088,-400.0,0.00039726,10]
[383765407,1757109236098,-438.53,0.00039726,10]
[383765408,1757109236107,-400.0,0.00039726,10]
[383765409,1757109236116,-400.0,0.00039726,10]
[383765410,1757109236126,-480.98,0.00039726,10]
[383765411,1757109236135,-425.95,0.00039726,10]
[383765412,1757109236144,-400.0,0.00039726,10]
[383765413,1757109236154,-400.0,0.00039726,10]
[383765414,1757109236163,-443.56,0.00039726,10]
[383765415,1757109236172,-400.0,0.00039726,10]
[383765416,1757109236181,-501.99,0.00039726,10]
[383765417,1757109236191,-400.0,0.00039726,10]
[383765418,1757109236201,-400.0,0.00039726,10]
[383765419,1757109236210,-441.78,0.00039726,10]
[383765420,1757109236219,-545.84,0.00039726,10]
[383765421,1757109236229,-439.9,0.00039726,10]
[383765422,1757109236238,-545.23,0.00039726,10]
[383765423,1757109236248,-400.0,0.00039726,10]
[383765424,1757109236257,-405.11,0.00039726,10]
[383765425,1757109236267,-413.96,0.00039726,10]
[383765426,1757109236276,-470.74,0.00039726,10]
[383765427,1757109236286,-1154.65,0.00039726,10]
[383765428,1757109236295,-400.0,0.00039726,10]
[383765429,1757109236304,-400.0,0.00039726,10]
[383765430,1757109236315,-3534.15,0.00039726,10]
[383765431,1757109236325,-400.0,0.00039726,10]
[383765432,1757109236334,-466.43,0.00039726,10]
[383765433,1757109236344,-367.71065495,0.00039726,10]
[383765434,1757109236353,-486.3,0.00039726,10]
[383765435,1757109236363,-552.13,0.00039726,10]
[383765436,1757109236373,-529.91,0.00039726,10]
[383765437,1757109236382,-524.16,0.00039726,10]
[383765438,1757109236392,-400.0,0.00039726,10]
[383765439,1757109236401,-836.63,0.00039726,10]
[383765440,1757109236410,-647.19,0.00039726,10]
[383765441,1757109236420,-400.0,0.00039726,10]
[383765442,1757109236429,-531.26,0.00039726,10]
[383765443,1757109236439,-400.0,0.00039726,10]
[383765444,1757109236449,-400.0,0.00039726,10]
[383765445,1757109236458,-690.4,0.00039726,10]
[383765446,1757109236468,-508.58,0.00039726,10]
[383765447,1757109236477,-424.68,0.00039726,10]
[383765448,1757109236487,-400.0,0.00039726,10]
[383765449,1757109236496,-1608.94,0.00039726,10]
[383765450,1757109236506,-496.78,0.00039726,10]
[383765451,1757109236515,-400.0,0.00039726,10]
[383765452,1757109236524,-414.05,0.00039726,10]
[383765453,1757109236534,-400.0,0.00039726,10]
[383765454,1757109236543,-400.0,0.00039726,10]
[383765455,1757109236553,-983.85,0.00039726,10]
[383765456,1757109236562,-522.3,0.00039726,10]
[383765457,1757109236572,-2782.91,0.00039726,10]
[383765458,1757109236581,-400.0,0.00039726,10]
[383765459,1757109236590,-650.54,0.00039726,10]
[383765460,1757109236601,-1361.26,0.00039726,10]
[383765461,1757109236610,-436.1,0.00039726,10]
[383765462,1757109236620,-400.0,0.00039726,10]
[383765463,1757109236630,-400.0,0.00039726,10]
[383765464,1757109236640,-649.0,0.00039726,10]
[383765465,1757109236649,-400.0,0.00039726,10]
[383765466,1757109236659,-442.27,0.00039726,10]
[383765467,1757109236669,-474.21,0.00039726,10]
[383765468,1757109236679,-400.0,0.00039726,10]
[383765469,1757109236688,-400.0,0.00039726,10]
[383765470,1757109236698,-603.16,0.00039726,10]
[383765471,1757109236707,-407.14,0.00039726,10]
[383765472,1757109236717,-436.72,0.00039726,10]
[383765473,1757109236727,-8442.03,0.00039726,10]
[383765474,1757109236736,-443.36,0.00039726,10]
[383765475,1757109236746,-621.71,0.00039726,10]
[383765476,1757109236756,-400.0,0.00039726,10]
[383765477,1757109236765,-400.0,0.00039726,10]
[383765478,1757109236775,-406.08,0.00039726,10]
[383765479,1757109236784,-400.0,0.00039726,10]
[383765480,1757109236794,-400.0,0.00039726,10]
[383765481,1757109236803,-1439.09,0.00039726,10]
[383765482,1757109236812,-400.0,0.00039726,10]
[383765483,1757109236821,-475.57,0.00039726,10]
[383765484,1757109236831,-2688.71,0.00039726,10]
[383765485,1757109236840,-1300.45,0.00039726,10]
[383765486,1757109236850,-530.86,0.00039726,10]
[383765487,1757109236860,-400.0,0.00039726,10]
[383765488,1757109236869,-400.0,0.00039726,10]
[383765489,1757109236878,-400.0,0.00039726,10]
[383765490,1757109236887,-423.37,0.00039726,10]
[383765491,1757109236897,-400.0,0.00039726,10]
[383765492,1757109236906,-442.37,0.00039726,10]
[383765493,1757109236915,-425.64,0.00039726,10]
[383765494,1757109236925,-400.0,0.00039726,10]
[383765495,1757109236938,-4723.5,0.00039726,10]
[383765496,1757109236947,-514.62,0.00039726,10]
[383765497,1757109236957,-446.4,0.00039726,10]
[383765498,1757109236967,-400.0,0.00039726,10]
[383765499,1757109236976,-783.27,0.00039726,10]
[383765500,1757109236987,-425.55,0.00039726,10]
[383765501,1757109236997,-483.04,0.00039726,10]
[383765502,1757109237006,-440.05,0.00039726,10]
[383765503,1757109237015,-400.0,0.00039726,10]
[383765504,1757109237025,-400.0,0.00039726,10]
[383765505,1757109237034,-516.74515332,0.00039726,10]
[383765506,1757109237044,-483.3,0.00039726,10]
[383765507,1757109237054,-599.12,0.00039726,10]
[383765508,1757109237064,-400.0,0.00039726,10]
[383765509,1757109237073,-677.0,0.00039726,10]
[383765510,1757109237082,-1085.17,0.00039726,10]
[383765511,1757109237092,-400.0,0.00039726,10]
[383765512,1757109237101,-400.0,0.00039726,10]
[383765513,1757109237110,-3844.91,0.00039726,10]
[383765514,1757109237119,-1689.46,0.00039726,10]
[383765515,1757109237128,-421.08,0.00039726,10]
[383765516,1757109237137,-877.43,0.00039726,10]
[383765517,1757109237147,-400.0,0.00039726,10]
[383765518,1757109237157,-537.76,0.00039726,10]
[383765519,1757109237166,-436.27,0.00039726,10]
[383765520,1757109237176,-479.41,0.00039726,10]
[383765521,1757109237185,-931.34,0.00039726,10]
[383765522,1757109237194,-400.0,0.00039726,10]
[383765523,1757109237203,-400.0,0.00039726,10]
[383765524,1757109237212,-400.0,0.00039726,10]
[383765525,1757109237222,-400.0,0.00039726,10]
[383765526,1757109237231,-2095.01,0.00039726,10]
[383765527,1757109237240,-434.12,0.00039726,10]
[383765528,1757109237250,-1265.08,0.00039726,10]
[383765529,1757109237259,-828.12,0.00039726,10]
[383765530,1757109237269,-490.29,0.00039726,10]
[383765531,1757109237278,-400.0,0.00039726,10]
[383765532,1757109237287,-407.95,0.00039726,10]
[383765533,1757109237296,-445.3,0.00039726,10]
[383765534,1757109237305,-1988.71,0.00039726,10]
[383765535,1757109237315,-400.0,0.00039726,10]
[383765536,1757109237324,-400.0,0.00039726,10]
[383765537,1757109237333,-531.57,0.00039726,10]
[383765538,1757109237342,-428.34,0.00039726,10]
[383765539,1757109237351,-401.29,0.00039726,10]
[383765540,1757109237361,-720.58,0.00039726,10]
[383765541,1757109237370,-400.0,0.00039726,10]
[383765542,1757109237379,-400.0,0.00039726,10]
[383765543,1757109237388,-400.0,0.00039726,10]
[383765544,1757109237397,-400.0,0.00039726,10]
[383765545,1757109237406,-471.02,0.00039726,10]
[383765546,1757109237415,-400.0,0.00039726,10]
[383765547,1757109237424,-2254.56,0.00039726,10]
[383765548,1757109237434,-786.84,0.00039726,10]
[383765549,1757109237443,-400.0,0.00039726,10]
[383765550,1757109237452,-1906.65,0.00039726,10]
[383765551,1757109237461,-400.0,0.00039726,10]
[383765552,1757109237470,-3337.86,0.00039726,10]
[383765553,1757109237479,-400.0,0.00039726,10]
[383765554,1757109237489,-404.67,0.00039726,10]
[383765555,1757109237499,-516.46,0.00039726,10]
[383765556,1757109237508,-911.18,0.00039726,10]
[383765557,1757109237517,-511.96,0.00039726,10]
[383765558,1757109237526,-488.47,0.00039726,10]
[383765559,1757109237536,-1977.28,0.00039726,10]
[383765560,1757109237545,-400.0,0.00039726,10]
[383765561,1757109237554,-457.95,0.00039726,10]
[383765562,1757109237563,-162.6772865,0.00039726,10]
[383765563,1757109237573,-400.0,0.00039726,10]
[383765564,1757109237582,-400.0,0.00039726,10]
[383765565,1757109237591,-527.02,0.00039726,10]
[383765566,1757109237601,-689.76,0.00039726,10]
[383765567,1757109237610,-697.63,0.00039726,10]
[383765568,1757109237619,-433.65,0.00039726,10]
[383765569,1757109237629,-6963.13,0.00039726,10]
[383765570,1757109237638,-419.06,0.00039726,10]
[383765571,1757109237912,-436.45,0.00039726,10]
[383765572,1757109237922,-400.0,0.00039726,10]
[383765573,1757109237933,-400.0,0.00039726,10]
[383765574,1757109237943,-1232.95,0.00039726,10]
[383765575,1757109237952,-618.53,0.00039726,10]
[383765576,1757109237962,-400.0,0.00039726,10]
[383765577,1757109237972,-153.0,0.000398,120]
[383765578,1757109237982,-348578.21822709,0.000398,30]
[383765579,1757109237995,-926.44847756,0.000398,120]
[383765580,1757109238004,-41723.16,0.000398,14]
[383765581,1757109238013,-150.0,0.00039842,120]
[383765582,1757109238023,-150.0,0.00039844,120]
[383765583,1757109238032,-150.0,0.00039846,120]
[383765584,1757109238041,-150.0,0.00039861,120]
[383765585,1757109238051,-299.79,0.00039863,25]
[383765586,1757109238061,-389.0,0.0003988,2]
[383765587,1757109238070,-1178.96147,0.00039888,30]
[383765588,1757109238080,-212.0,0.0003989,30]
[383765589,1757109238089,-200.0,0.0003989,2]
[383765590,1757109238099,-214.0,0.0003989,2]
[383765591,1757109238109,-150.0,0.0003991,120]
[383765592,1757109238119,-150.0,0.0003992,120]
[383765593,1757109238129,-165.39,0.00039922,2]
[383765594,1757109238138,-301.36,0.00039922,2]
[383765595,1757109238147,-1081.77,0.00039923,2]
[383765596,1757109238156,-332.96,0.00039923,2]
[383765597,1757109238166,-927.11,0.00039923,2]
[383765598,1757109238175,-4000.0,0.00039928,8]
[383765599,1757109238184,-4000.0,0.00039938,8]
[383765600,1757109238194,-4000.0,0.00039948,8]
[383765601,1757109238203,-4000.0,0.00039959,8]
[383765602,1757109238213,-4000.0,0.00039969,8]
[383765603,1757109238222,-4000.0,0.00039979,8]
[383765604,1757109238231,-3150.41298394,0.0003999,8]
[383765605,1757109238241,-203.66591866,0.00039999,31]
[383765606,1757109238250,-379.020244,0.00039999,31]
[383765607,1757109238260,-190.94877619,0.00039999,31]
[383765608,1757109238269,-445.39540444,0.00039999,7]
[383765609,1757109238279,-390.73109351,0.00039999,31]
[383765610,1757109238288,-475.22047686,0.00039999,31]
[383765611,1757109238297,-167.45618293,0.00039999,31]
[383765612,1757109238306,-50000.0,0.0004,40]
[383765613,1757109238316,-250.43075881,0.0004,5]
[383765614,1757109238325,-358.37175289,0.0004,120]
[383765615,1757109238335,-462.27596484,0.0004,5]
[383765616,1757109238344,-2299.99999508,0.0004,2]
[383765617,1757109238354,-961.35880455,0.0004,7]
[383765618,1757109238363,-484.2982173,0.0004,120]
[383765619,1757109238373,-383.8231268,0.0004,2]
[383765620,1757109238382,-684.42610857,0.0004,120]
[383765621,1757109238391,-284.74397862,0.0004,120]
[383765622,1757109238401,-1063.64095879,0.0004,30]
[383765623,1757109238410,-215.11498052,0.0004,2]
[383765624,1757109238420,-168.24440949,0.0004,30]
[383765625,1757109238429,-29289.2350518,0.0004,30]
[383765626,1757109238439,-1034675.57844156,0.0004,120]
[383765627,1757109238448,-200.0,0.0004,120]
[383765628,1757109238458,-297.6418122,0.0004,120]
[383765629,1757109238467,-102520.75396825,0.0004,30]
[383765630,1757109238476,-185435.62717099,0.0004,7]
[383765631,1757109238486,-253.43627955,0.0004,30]
[383765632,1757109238495,-180678.59141289,0.0004,2]
[383765633,1757109238504,-503.75527373,0.0004,120]
[383765634,1757109238514,-1000.0,0.0004,60]
[383765635,1757109238524,-5000.0,0.0004,30]
[383765636,1757109238533,-1000.70273901,0.0004,120]
[383765637,1757109238543,-900.0,0.0004,41]
[383765638,1757109238552,-250.0,0.0004,120]
[383765639,1757109238562,-414.21602487,0.0004,7]
[383765640,1757109238571,-597.88581054,0.0004,2]
[383765641,1757109238581,-1006.9736004,0.0004,2]
[383765642,1757109238590,-202.0,0.0004,30]
[383765643,1757109238599,-160.0,0.0004,3]
[383765644,1757109238609,-5000.0,0.0004,120]
[383765645,1757109238619,-198.45195822,0.0004,120]
[383765646,1757109238628,-3010.69135387,0.0004,3]
[383765647,1757109238638,-339.30249,0.0004,10]
[383765648,1757109238648,-634.468343,0.0004,10]
[383765649,1757109238657,-170.344832,0.0004,10]
[383765650,1757109238667,-241.13191478,0.0004,30]
[383765651,1757109238676,-685.32,0.0004,30]
[383765652,1757109238686,-1615.51275501,0.0004,2]
[383765653,1757109238696,-400.0,0.0004,10]
[383765654,1757109238706,-400.0,0.0004,10]
[383765655,1757109238715,-400.0,0.0004,10]
[383765656,1757109238725,-400.0,0.0004,10]
[383765657,1757109238734,-417.8,0.0004,10]
[383765658,1757109238744,-400.0,0.0004,10]
[383765659,1757109238753,-400.0,0.0004,10]
[383765660,1757109238763,-304.03447963,0.0004,10]
[383765661,1757109238772,-400.0,0.0004,10]
[383765662,1757109238782,-400.0,0.0004,10]
[383765663,1757109238791,-525.69562949,0.0004,10]
[383765664,1757109238801,-400.0,0.0004,10]
[383765665,1757109238810,-400.0,0.0004,10]
[383765666,1757109238820,-400.0,0.0004,10]
[383765667,1757109238830,-400.0,0.0004,10]
[383765668,1757109238839,-400.0,0.0004,10]
[383765669,1757109238849,-944.57,0.0004,10]
[383765670,1757109238858,-400.0,0.0004,10]
[383765671,1757109238868,-300.0,0.0004,10]
[383765672,1757109238878,-846.07,0.0004,10]
[383765673,1757109238888,-400.0,0.0004,10]
[383765674,1757109238898,-400.0,0.0004,10]
[383765675,1757109238907,-400.0,0.0004,10]
[383765676,1757109238917,-400.0,0.0004,10]
[383765677,1757109238926,-181.31904058,0.0004,10]
[383765678,1757109238936,-400.0,0.0004,10]
[383765679,1757109238945,-564.87,0.0004,10]
[383765680,1757109238955,-765.62,0.0004,10]
[383765681,1757109238964,-400.0,0.0004,10]
[383765682,1757109238974,-400.0,0.0004,10]
[383765683,1757109238984,-1407.0,0.0004,120]
[383765684,1757109238999,-400.0,0.0004,10]
[383765685,1757109239008,-400.0,0.0004,10]
[383765686,1757109239019,-433.33,0.0004,10]
[383765687,1757109239029,-1155.55,0.0004,10]
[383765688,1757109239039,-400.0,0.0004,10]
[383765689,1757109239049,-1569.05,0.0004,120]
[383765690,1757109239059,-400.0,0.0004,10]
[383765691,1757109239069,-678.29,0.0004,10]
[383765692,1757109239079,-405.24,0.0004,10]
[383765693,1757109239088,-383.68,0.0004,120]
[383765694,1757109239098,-414.11,0.0004,10]
[383765695,1757109239107,-413.3,0.0004,10]
[383765696,1757109239117,-219.38,0.0004,120]
[383765697,1757109239127,-400.0,0.0004,10]
[383765698,1757109239136,-311.31408214,0.0004,10]
[383765699,1757109239146,-150.73,0.0004,10]
[383765700,1757109239156,-418.03,0.0004,10]
[383765701,1757109239166,-400.0,0.0004,10]
[383765702,1757109239176,-400.0,0.0004,10]
[383765703,1757109239185,-264.16,0.0004,10]
[383765704,1757109239195,-301.81051664,0.0004,10]
[383765705,1757109239205,-400.0,0.0004,10]
[383765706,1757109239214,-420.25,0.0004,10]
[383765707,1757109239223,-437.75,0.0004,10]
[383765708,1757109239233,-291.81764145,0.0004,10]
[383765709,1757109239242,-506.4,0.0004,10]
[383765710,1757109239252,-437.87,0.0004,10]
[383765711,1757109239261,-400.0,0.0004,10]
[383765712,1757109239271,-369.74764141,0.0004,10]
[383765713,1757109239280,-451.2,0.0004,10]
[383765714,1757109239291,-507.92,0.0004,10]
[383765715,1757109239301,-400.0,0.0004,10]
[383765716,1757109239310,-278.13,0.0004,10]
[383765717,1757109239320,-400.0,0.0004,10]
[383765718,1757109239329,-400.0,0.0004,10]
[383765719,1757109239339,-461.35,0.0004,10]
[383765720,1757109239349,-458.84,0.0004,10]
[383765721,1757109239359,-428.49,0.0004,10]
[383765722,1757109239368,-1054.45,0.0004,10]
[383765723,1757109239378,-409.45,0.0004,10]
[383765724,1757109239388,-400.0,0.0004,10]
[383765725,1757109239397,-400.0,0.0004,10]
[383765726,1757109239407,-542.29,0.0004,10]
[383765727,1757109239416,-508.21,0.0004,10]
[383765728,1757109239426,-400.0,0.0004,10]
[383765729,1757109239436,-400.0,0.0004,10]
[383765730,1757109239445,-493.63,0.0004,10]
[383765731,1757109239454,-425.32,0.0004,10]
[383765732,1757109239464,-518.21,0.0004,10]
[383765733,1757109239474,-449.3,0.0004,10]
[383765734,1757109239483,-510.04,0.0004,10]
[383765735,1757109239492,-414.48,0.0004,10]
[383765736,1757109239503,-400.0,0.0004,10]
[383765737,1757109239512,-153.113189,0.0004,10]
[383765738,1757109239522,-970.87,0.0004,10]
[383765739,1757109239531,-490.71,0.0004,10]
[383765740,1757109239541,-436.72,0.0004,10]
[383765741,1757109239550,-414.95,0.0004,10]
[383765742,1757109239560,-400.0,0.0004,10]
[383765743,1757109239569,-400.0,0.0004,10]
[383765744,1757109239579,-447.82,0.0004,10]
[383765745,1757109239589,-647.6,0.0004,10]
[383765746,1757109239599,-425.6,0.0004,10]
[383765747,1757109239608,-490.57,0.0004,10]
[383765748,1757109239618,-400.0,0.0004,10]
[383765749,1757109239627,-641.44,0.0004,10]
[383765750,1757109239637,-419.23,0.0004,10]
[383765751,1757109239647,-400.0,0.0004,10]
[383765752,1757109239657,-401.8,0.0004,10]
[383765753,1757109239667,-403.59,0.0004,10]
[383765754,1757109239677,-400.0,0.0004,10]
[383765755,1757109239687,-400.0,0.0004,10]
[383765756,1757109239697,-548.51,0.0004,10]
[383765757,1757109239706,-452.54,0.0004,10]
[383765758,1757109239716,-400.0,0.0004,10]
[383765759,1757109239726,-440.39,0.0004,10]
[383765760,1757109239736,-679.14,0.0004,10]
[383765761,1757109239746,-433.62,0.0004,10]
[383765762,1757109239756,-400.0,0.0004,10]
[383765763,1757109239766,-400.0,0.0004,10]
[383765764,1757109239776,-589.1,0.0004,10]
[383765765,1757109239786,-551.08,0.0004,10]
[383765766,1757109239796,-415.82,0.0004,10]
[383765767,1757109239806,-576.99,0.0004,10]
[383765768,1757109239816,-400.0,0.0004,10]
[383765769,1757109239826,-455.37,0.0004,10]
[383765770,1757109239835,-410.32,0.0004,10]
[383765771,1757109239846,-406.0004733,0.0004,10]
[383765772,1757109239856,-497.74,0.0004,10]
[383765773,1757109239866,-498.14,0.0004,10]
[383765774,1757109239875,-878.01,0.0004,10]
[383765775,1757109239885,-400.0,0.0004,10]
[383765776,1757109239894,-400.0,0.0004,10]
[383765777,1757109239904,-1227.44,0.0004,10]
[383765778,1757109239914,-400.0,0.0004,10]
[383765779,1757109239923,-601.8,0.0004,10]
[383765780,1757109239933,-382.03017204,0.0004,10]
[383765781,1757109239943,-404.89,0.0004,10]
[383765782,1757109239952,-510.63214123,0.0004,10]
[383765783,1757109239962,-400.0,0.0004,10]
[383765784,1757109239972,-414.05,0.0004,10]
[383765785,1757109239982,-562.13,0.0004,10]
[383765786,1757109239996,-400.0,0.0004,10]
[383765787,1757109240006,-400.0,0.0004,10]
[383765788,1757109240016,-457.02,0.0004,10]
[383765789,1757109240026,-168.5,0.0004,10]
[383765790,1757109240036,-519.36,0.0004,10]
[383765791,1757109240045,-400.0,0.0004,10]
[383765792,1757109240055,-400.0,0.0004,10]
[383765793,1757109240065,-400.0,0.0004,10]
[383765794,1757109240075,-400.0,0.0004,10]
[383765795,1757109240084,-464.19,0.0004,10]
[383765796,1757109240094,-509.57,0.0004,10]
[383765797,1757109240103,-400.0,0.0004,10]
[383765798,1757109240114,-400.0,0.0004,10]
[383765799,1757109240123,-400.0,0.0004,10]
[383765800,1757109240132,-400.0,0.0004,10]
[383765801,1757109240142,-536.82,0.0004,10]
[383765802,1757109240151,-400.0,0.0004,10]
[383765803,1757109240161,-400.0,0.0004,10]
[383765804,1757109240172,-456.25,0.0004,10]
[383765805,1757109240181,-400.0,0.0004,10]
[383765806,1757109240191,-400.0,0.0004,10]
[383765807,1757109240201,-400.0,0.0004,10]
[383765808,1757109240211,-400.0,0.0004,10]
[383765809,1757109240220,-400.0,0.0004,10]
[383765810,1757109240230,-1325.01,0.0004,10]
[383765811,1757109240240,-662.17,0.0004,10]
[383765812,1757109240251,-475.33,0.0004,10]
[383765813,1757109240260,-400.0,0.0004,10]
[383765814,1757109240270,-580.54,0.0004,10]